bitfinex/quotes_BTCUSD_20250616
["timestamp","ask_amount","ask_price","bid_price","bid_amount"]
[1750107508993,0.04727374,108880.0,108870.0,0.45769793]
[1750107509787,0.05727374,108880.0,108870.0,0.45769793]
[1750107509987,0.05727366,108880.0,108870.0,0.45769793]
[1750107510204,0.04809,108880.0,108870.0,0.45769793]
[1750107510844,0.04809,108880.0,108870.0,0.33513793]
[1750107511051,0.04809,108880.0,108870.0,0.45769793]
[1750107516722,0.0275,108880.0,108870.0,1.04863732]
[1750107517624,0.0255,108880.0,108870.0,1.04863732]
[1750107517853,0.01,108880.0,108870.0,1.59602449]
[1750107518081,0.01,108880.0,108870.0,1.61302449]
[1750107518312,0.01,108880.0,108870.0,1.10017817]
[1750107518543,0.01,108880.0,108870.0,1.17616588]
[1750107518785,0.01,108880.0,108870.0,1.10317817]
[1750107520695,0.01,108880.0,108870.0,0.59033185]
[1750107520904,0.01,108880.0,108870.0,1.10317817]
[1750107521900,0.01,108880.0,108870.0,1.0296251]
[1750107522116,0.01,108880.0,108870.0,0.9070651]
[1750107522332,0.0265,108880.0,108870.0,0.54249878]
[1750107522535,0.0265,108880.0,108870.0,0.50165878]
[1750107522536,0.0416,108880.0,108870.0,0.50165878]
[1750107522667,0.0416,108880.0,108870.0,1.0145051]
[1750107523257,0.0265,108880.0,108870.0,1.0145051]
[1750107523499,0.0419,108880.0,108870.0,1.0145051]
[1750107524123,0.01,108880.0,108870.0,1.0145051]
[1750107524750,0.01,108880.0,108870.0,0.37921878]
[1750107524974,0.0415,108880.0,108870.0,1.0145051]
[1750107525705,0.0415,108880.0,108870.0,0.8920651]
[1750107525939,0.0415,108880.0,108870.0,0.85298425]
[1750107526395,0.0415,108880.0,108870.0,0.97542425]
[1750107526605,0.0415,108880.0,108870.0,0.46257793]
[1750107527241,0.0415,108880.0,108870.0,0.46711793]
[1750107528229,0.0415,108880.0,108870.0,0.97996425]
[1750107529934,0.0415,108880.0,108870.0,0.85752425]
[1750107530052,0.0415,108880.0,108870.0,0.97992425]
[1750107530765,0.01,108880.0,108870.0,0.97992425]
[1750107531881,0.0263,108880.0,108870.0,0.97992425]
[1750107532119,0.0428,108880.0,108870.0,0.97538425]
[1750107532322,0.0428,108880.0,108870.0,0.97992425]
[1750107532964,0.0428,108880.0,108870.0,0.46707793]
[1750107533173,0.0428,108880.0,108870.0,0.97992425]
[1750107533394,0.0428,108880.0,108870.0,0.36013793]
[1750107533603,1.11159677,108880.0,108870.0,0.128878]
[1750107533822,1.11159677,108880.0,108870.0,0.00504724]
[1750107533823,1.10241303,108880.0,108870.0,0.00504724]
[1750107534038,1.22481303,108880.0,108870.0,0.19793766]
[1750107534248,1.23556695,108880.0,108870.0,0.19793766]
[1750107534459,1.24318111,108880.0,108870.0,0.19793766]
[1750107534690,1.24318111,108880.0,108870.0,0.20512267]
[1750107534894,1.24318111,108880.0,108870.0,0.21430759]
[1750107535101,1.24418111,108880.0,108870.0,0.21430759]
[1750107535313,1.22581337,108880.0,108870.0,0.20512267]
[1750107535716,1.22581337,108880.0,108870.0,0.19293766]
[1750107535894,1.22581337,108880.0,108870.0,0.20212258]
[1750107536313,1.22581337,108880.0,108870.0,0.19293766]
[1750107536714,1.09194865,108880.0,108870.0,0.21130725]
[1750107536912,1.28482195,108880.0,108870.0,0.20212258]
[1750107537670,1.28482195,108880.0,108870.0,0.21130742]
[1750107537998,1.27563778,108880.0,108870.0,0.20212267]
[1750107538203,1.27563778,108880.0,108870.0,0.21130751]
[1750107538410,1.27563778,108880.0,108870.0,0.20212267]
[1750107538656,0.9197249,108880.0,108870.0,0.22049226]
[1750107538862,1.08276457,108880.0,108870.0,0.22049235]
[1750107539222,1.08276457,108880.0,108870.0,0.22049243]
[1750107539444,1.09194899,108880.0,108870.0,0.22049243]
[1750107539646,1.08276457,108880.0,108870.0,0.22967719]
[1750107539779,1.0919489,108880.0,108870.0,0.22967719]
[1750107540179,1.08276457,108880.0,108870.0,0.22967719]
[1750107540390,1.09194823,108880.0,108870.0,0.22967677]
[1750107540599,1.10113248,108880.0,108870.0,0.2204921]
[1750107541057,1.1103169,108880.0,108870.0,0.21130734]
[1750107541267,1.1103169,108880.0,108870.0,0.2021225]
[1750107541695,1.1103169,108880.0,108870.0,0.21130734]
[1750107542115,1.10113248,108880.0,108870.0,0.2204921]
[1750107542358,1.11031681,108880.0,108870.0,0.2204921]
[1750107542982,1.11031681,108880.0,108870.0,0.21130734]
[1750107543192,1.10113307,108880.0,108870.0,0.2021225]
[1750107543399,1.29400595,108880.0,108870.0,0.2021225]
[1750107543620,0.39769391,108880.0,108870.0,0.2021225]
[1750107543855,0.52927749,108880.0,108870.0,0.21130717]
[1750107544064,0.53846149,108880.0,108870.0,0.21130717]
[1750107544267,1.05130781,108880.0,108870.0,0.21130717]
[1750107544684,1.06049198,108880.0,108870.0,0.21130717]
[1750107544899,1.05130781,108880.0,108870.0,0.21130717]
[1750107545919,1.06049189,108880.0,108870.0,0.21130717]
[1750107546124,1.05130781,108880.0,108870.0,0.21130717]
[1750107547266,1.06049189,108880.0,108870.0,0.21130717]
[1750107547910,1.06049189,108880.0,108870.0,0.2021225]
[1750107548128,1.06049189,108880.0,108870.0,0.21130726]
[1750107548332,1.06967614,108880.0,108870.0,0.22049193]
[1750107548570,1.06967614,108880.0,108870.0,0.21130726]
[1750107548779,1.2533646,108880.0,108870.0,0.18375257]
[1750107548972,1.24418144,108880.0,108870.0,0.19293766]
[1750107549184,1.06049298,108880.0,108870.0,0.20212258]
[1750107549388,1.06049298,108880.0,108870.0,0.21130742]
[1750107549590,1.06049298,108880.0,108870.0,0.20212258]
[1750107549746,1.06049298,108880.0,108870.0,0.21130742]
[1750107549972,1.06049298,108880.0,108870.0,0.22049218]
[1750107550316,1.25336586,108880.0,108870.0,0.21130742]
[1750107550521,1.24418186,108880.0,108870.0,0.21130742]
[1750107550905,1.24418186,108880.0,108870.0,0.20212258]
[1750107551039,1.24418186,108880.0,108870.0,0.21130742]
[1750107551247,0.73133554,108880.0,108870.0,0.21130742]
[1750107551451,1.05130898,108880.0,108870.0,0.21130742]
[1750107551650,1.05130898,108880.0,108870.0,0.22049218]
[1750107551853,0.3673,108880.0,108870.0,0.22967685]
[1750107552061,0.40196783,108880.0,108870.0,0.22967685]
[1750107552527,0.411152,108880.0,108870.0,0.22967685]
[1750107552746,0.40196783,108880.0,108870.0,0.22967685]
[1750107553323,0.411152,108880.0,108870.0,0.22967685]
[1750107553477,0.42033625,108880.0,108870.0,0.22967685]
[1750107553670,0.9423669,108880.0,108870.0,0.22049218]
[1750107553885,0.94236749,108880.0,108870.0,0.22049218]
[1750107554298,0.93318307,108880.0,108870.0,0.22967685]
[1750107554599,1.12605595,108880.0,108870.0,0.20212258]
[1750107554802,1.11687195,108880.0,108870.0,0.20212267]
[1750107555461,1.11687195,108880.0,108870.0,0.21130743]
[1750107555783,1.10768778,108880.0,108870.0,0.19293766]
[1750107555980,1.10768778,108880.0,108870.0,0.20212258]
[1750107556226,1.10768778,108880.0,108870.0,0.21130742]
[1750107556432,1.10768778,108880.0,108870.0,0.20212258]
[1750107556843,1.10768778,108880.0,108870.0,0.18375257]
[1750107557043,1.0893192,108880.0,108870.0,0.18375257]
[1750107557263,1.0893192,108880.0,108870.0,0.20212292]
[1750107557462,1.0893192,108880.0,108870.0,0.21130793]
[1750107557681,1.0893192,108880.0,108870.0,0.20212292]
[1750107558753,1.08013478,108880.0,108870.0,0.20212292]
[1750107558998,1.08013478,108880.0,108870.0,0.19293783]
[1750107561275,1.08013478,108880.0,108870.0,0.18375257]
[1750107561612,1.08013478,108880.0,108870.0,0.19293783]
[1750107562781,1.12069478,108880.0,108870.0,0.19293783]
[1750107564075,1.12069478,108880.0,108870.0,0.18375257]
[1750107564758,1.12069478,108880.0,108870.0,4.724e-05]
[1750107565163,1.12069478,108880.0,108870.0,0.18375257]
[1750107565385,1.12069478,108880.0,108870.0,0.19293783]
[1750107565589,1.08013478,108880.0,108870.0,0.19293783]
[1750107565728,1.24301478,108880.0,108870.0,0.18375257]
[1750107566193,1.24301478,108880.0,108870.0,0.19293783]
[1750107566338,1.24301478,108880.0,108870.0,0.20212301]
[1750107568064,1.24301478,108880.0,108870.0,0.19293783]
[1750107568351,0.53343174,108880.0,108870.0,0.2204926]
[1750107568574,0.40196757,108880.0,108870.0,0.2204926]
[1750107568874,0.53343165,108880.0,108870.0,0.2204926]
[1750107569100,0.54261582,108880.0,108870.0,0.2204926]
[1750107569300,0.55180007,108880.0,108870.0,0.2204926]
[1750107569696,0.55180074,108880.0,108870.0,0.2204926]
[1750107570123,0.42952074,108880.0,108870.0,0.2204926]
[1750107570292,0.41115165,108880.0,108870.0,0.2204926]
[1750107570501,0.5426159,108880.0,108870.0,0.2204926]
[1750107573384,0.73548878,108880.0,108870.0,0.22049277]
[1750107573600,0.72630512,108880.0,108870.0,0.22049277]
[1750107573822,0.72630512,108880.0,108870.0,0.22967753]
[1750107576057,0.72630512,108880.0,108870.0,0.22049277]
[1750107576455,0.71712121,108880.0,108870.0,0.22049277]
[1750107578446,0.71712121,108880.0,108870.0,0.22967753]
[1750107578734,0.71712121,108880.0,108870.0,0.22049277]
[1750107578883,0.71712121,108880.0,108870.0,0.21130793]
[1750107579711,0.71712121,108880.0,108870.0,0.22049277]
[1750107579911,0.71712121,108880.0,108870.0,0.20212301]
[1750107580176,0.70793713,108880.0,108870.0,0.20212301]
[1750107580429,0.392784,108880.0,108870.0,0.22967787]
[1750107580634,0.72626478,108880.0,108870.0,0.22936379]
[1750107580820,0.53339199,108880.0,108870.0,0.22936379]
[1750107581195,0.3836,108880.0,108870.0,0.83845187]
[1750107581381,0.51709165,108880.0,108870.0,0.83845187]
[1750107581580,0.50790757,108880.0,108870.0,0.32560555]
[1750107581786,0.0273,108880.0,108870.0,0.32560555]
[1750107581988,0.011,108880.0,108870.0,0.85505187]
[1750107582588,0.011,108880.0,108870.0,0.97729187]
[1750107583481,0.01,108880.0,108870.0,0.99249187]
[1750107583690,0.01,108880.0,108870.0,0.99349187]
[1750107584432,0.01,108880.0,108870.0,0.99449187]
[1750107586622,0.01,108880.0,108870.0,1.50733819]
[1750107586846,0.01,108880.0,108870.0,1.19449187]
[1750107590177,0.01,108880.0,108870.0,0.68164555]
[1750107590410,0.01,108880.0,108870.0,1.19449187]
[1750107590625,0.01,108880.0,108870.0,1.22207887]
[1750107596371,0.01,108880.0,108870.0,1.22247887]
[1750107597737,0.01,108880.0,108870.0,1.73532519]
[1750107598421,0.01,108880.0,108870.0,1.22247887]
[1750107600256,0.01,108880.0,108870.0,1.20687887]
[1750107600500,0.01,108880.0,108870.0,1.19027887]
[1750107601134,0.01,108880.0,108870.0,1.20587887]
[1750107608143,0.01,108880.0,108870.0,1.19027887]
[1750107609146,0.01,108880.0,108870.0,1.20567887]
[1750107609353,0.01,108880.0,108870.0,1.71852519]
[1750107609562,0.01,108880.0,108870.0,1.20567887]
[1750107611140,0.01,108880.0,108870.0,1.22067887]
[1750107611670,0.01,108880.0,108870.0,1.94806604]
[1750107612467,0.01,108880.0,108870.0,1.94706604]
[1750107612841,0.01,108880.0,108870.0,1.94906604]
[1750107613976,0.01,108880.0,108870.0,1.94806604]
[1750107614368,0.01,108880.0,108870.0,2.02405375]
[1750107614850,0.01,108880.0,108870.0,2.36405375]
[1750107615687,0.01,108880.0,108870.0,1.33836111]
[1750107615895,0.01,108880.0,108870.0,2.36405375]
[1750107617067,0.01,108880.0,108870.0,1.33836111]
[1750107617288,0.01,108880.0,108870.0,2.36405375]
[1750107618111,0.01,108880.0,108870.0,2.28606604]
[1750107620917,0.01,108880.0,108870.0,2.27020746]
[1750107623475,0.01,108880.0,108870.0,2.14816746]
[1750107623686,0.01,108880.0,108870.0,2.27012746]
[1750107627674,0.01,108880.0,108870.0,2.28522746]
[1750107628097,0.01,108880.0,108870.0,2.35821517]
[1750107629186,0.01,108880.0,108870.0,2.34311517]
[1750107630930,0.01,108880.0,108870.0,2.27012746]
[1750107631618,0.01,108880.0,108870.0,2.14816746]
[1750107631853,0.025,108880.0,108870.0,2.25468746]
[1750107639608,0.025,108880.0,108870.0,1.2296534]
[1750107639820,0.025,108880.0,108870.0,2.25468746]
[1750107641472,0.01,108880.0,108870.0,2.25468746]
[1750107642744,0.0261,108880.0,108870.0,2.25468746]
[1750107644373,0.0261,108880.0,108870.0,2.13276746]
[1750107644620,0.0422,108880.0,108870.0,2.25464746]
[1750107645409,0.0261,108880.0,108870.0,2.25464746]
[1750107646189,0.0261,108880.0,108870.0,2.13276746]
[1750107646395,0.0422,108880.0,108870.0,1.62025043]
[1750107646619,0.0422,108880.0,108870.0,1.74209043]
[1750107647258,0.0422,108880.0,108870.0,1.62025043]
[1750107647460,0.0422,108880.0,108870.0,1.74209043]
[1750107653901,0.0422,108880.0,108870.0,1.2295734]
[1750107654106,0.0422,108880.0,108870.0,1.74209043]
[1750107655458,0.0422,108880.0,108870.0,1.1077334]
[1750107655665,0.0422,108880.0,108870.0,1.40570958]
[1750107655867,0.0422,108880.0,108870.0,1.52750958]
[1750107656627,0.0422,108880.0,108870.0,1.40570958]
[1750107656858,0.0422,108880.0,108870.0,1.18750958]
[1750107659673,0.0422,108880.0,108870.0,0.67499255]
[1750107659885,0.0422,108880.0,108870.0,1.18750958]
[1750107660090,0.0422,108880.0,108870.0,0.67499255]
[1750107660291,0.0422,108880.0,108870.0,1.18750958]
[1750107663224,0.0422,108880.0,108870.0,1.06570958]
[1750107663468,0.0422,108880.0,108870.0,1.18746958]
[1750107677950,0.0422,108880.0,108870.0,0.67495255]
[1750107678157,0.0422,108880.0,108870.0,1.18746958]
[1750107682953,0.56390077,108880.0,108870.0,0.35319255]
[1750107683165,0.05138374,108880.0,108870.0,0.44728555]
[1750107683596,0.05138374,108880.0,108870.0,0.95980258]
[1750107683835,0.05138374,108880.0,108870.0,0.44728555]
[1750107684053,0.05138366,108880.0,108870.0,0.95980258]
[1750107684620,0.06056757,108880.0,108870.0,0.44728555]
[1750107684837,0.06056749,108880.0,108870.0,0.95980258]
[1750107685063,0.06056749,108880.0,108870.0,0.44728555]
[1750107685290,0.05138366,108880.0,108870.0,0.95976258]
[1750107685725,0.05138374,108880.0,108870.0,0.95976258]
[1750107685940,0.05138374,108880.0,108870.0,0.83812258]
[1750107686167,0.05138366,108880.0,108870.0,0.95976258]
[1750107686391,0.0422,108880.0,108870.0,0.95976258]
[1750107686612,0.05138366,108880.0,108870.0,0.95976258]
[1750107688402,0.0422,108880.0,108870.0,0.95976258]
[1750107688627,0.0422,108880.0,108870.0,0.83812258]
[1750107688831,0.05138366,108880.0,108870.0,0.32560555]
[1750107689005,0.05138366,108880.0,108870.0,0.95976258]
[1750107689542,0.0422,108880.0,108870.0,0.95976258]
[1750107690466,0.05138374,108880.0,108870.0,0.95976258]
[1750107690690,0.0422,108880.0,108870.0,0.95976258]
[1750107690913,0.05138366,108880.0,108870.0,0.95976258]
[1750107692528,0.06056749,108880.0,108870.0,0.95976258]
[1750107692939,0.0605674,108880.0,108870.0,0.95976258]
[1750107693145,0.0422,108880.0,108870.0,0.95976258]
[1750107695179,0.05138374,108880.0,108870.0,0.95976258]
[1750107695464,0.05138374,108880.0,108870.0,0.44724555]
[1750107695785,0.0422,108880.0,108870.0,0.95976258]
[1750107696090,0.05138374,108880.0,108870.0,0.95976258]
[1750107696426,0.05138366,108880.0,108870.0,0.44724555]
[1750107696648,0.06056749,108880.0,108870.0,0.95976258]
[1750107697052,0.05138366,108880.0,108870.0,0.95976258]
[1750107697826,0.06056749,108880.0,108870.0,0.95976258]
[1750107698044,0.05138366,108880.0,108870.0,0.44724555]
[1750107698261,0.58226852,108880.0,108870.0,0.32560555]
[1750107698487,0.58226852,108880.0,108870.0,0.44720555]
[1750107698724,0.57308452,108880.0,108870.0,0.44720555]
[1750107698964,0.07893548,108880.0,108870.0,0.32560555]
[1750107699164,0.05138366,108880.0,108870.0,0.83812258]
[1750107699625,0.06056749,108880.0,108870.0,0.83812258]
[1750107700285,0.06056749,108880.0,108870.0,0.32560555]
[1750107701046,0.06975149,108880.0,108870.0,0.32560555]
[1750107701296,0.06056749,108880.0,108870.0,0.32560555]
[1750107701732,0.06975149,108880.0,108870.0,0.32560555]
[1750107701954,0.06975149,108880.0,108870.0,0.83812258]
[1750107702166,0.06056749,108880.0,108870.0,0.83812258]
[1750107703118,0.06975149,108880.0,108870.0,0.83812258]
[1750107703342,0.06056749,108880.0,108870.0,0.83812258]
[1750107703831,0.0605674,108880.0,108870.0,0.83812258]
[1750107705857,0.06975123,108880.0,108870.0,0.44716555]
[1750107706084,0.07893523,108880.0,108870.0,0.44716555]
[1750107706332,0.06975123,108880.0,108870.0,0.44716555]
[1750107706558,0.07893523,108880.0,108870.0,0.44716555]
[1750107706940,0.06975123,108880.0,108870.0,0.44716555]
[1750107708117,0.07893523,108880.0,108870.0,0.44716555]
[1750107708316,0.07893523,108880.0,108870.0,0.95968258]
[1750107709211,0.0881194,108880.0,108870.0,0.95968258]
[1750107709372,0.0881194,108880.0,108870.0,0.44716555]
[1750107709621,0.60063643,108880.0,108870.0,0.44716555]
[1750107709802,0.60063651,108880.0,108870.0,0.44716555]
[1750107710241,0.59145226,108880.0,108870.0,0.44716555]
[1750107710667,0.60063643,108880.0,108870.0,0.44716555]
[1750107711190,0.60063702,108880.0,108870.0,0.44716555]
[1750107711391,0.07893574,108880.0,108870.0,0.44716555]
[1750107711525,0.59145277,108880.0,108870.0,0.44716555]
[1750107711740,0.06975157,108880.0,108870.0,0.44716555]
[1750107711943,1.28765826,108880.0,108870.0,0.005]
[1750107712141,1.34588514,108880.0,108870.0,0.005]
[1750107712331,1.34588514,108880.0,108870.0,0.19789051]
[1750107712533,1.26929111,108880.0,108870.0,0.19789051]
[1750107713195,0.87829408,108880.0,108870.0,0.19789051]
[1750107713393,0.87829408,108880.0,108870.0,0.2070756]
[1750107713592,0.36577705,108880.0,108870.0,0.21626061]
[1750107713796,0.87829408,108880.0,108870.0,0.22544553]
[1750107715448,0.87829408,108880.0,108870.0,0.23463037]
[1750107715928,0.87829408,108880.0,108870.0,0.22544553]
[1750107716351,0.87829408,108880.0,108870.0,0.23463037]
[1750107717046,0.87829408,108880.0,108870.0,0.22544553]
[1750107717749,0.24425705,108880.0,108870.0,0.22544553]
[1750107717961,0.58226919,108880.0,108870.0,0.23462986]
[1750107718816,0.5822686,108880.0,108870.0,0.23462986]
[1750107719013,0.59145285,108880.0,108870.0,0.23462986]
[1750107719268,0.59145277,108880.0,108870.0,0.23462986]
[1750107720110,0.59145285,108880.0,108870.0,0.23462986]
[1750107720294,0.0422,108880.0,108870.0,0.84338865]
[1750107721022,0.0261,108880.0,108870.0,0.84338865]
[1750107721240,0.01,108880.0,108870.0,1.05948865]
[1750107721455,0.01,108880.0,108870.0,1.08707665]
[1750107724347,0.01,108880.0,108870.0,1.10227665]
[1750107725603,0.01,108880.0,108870.0,1.86933453]
[1750107728117,0.01,108880.0,108870.0,1.3568175]
[1750107733778,0.01,108880.0,108870.0,1.3168175]
[1750107733982,0.01,108880.0,108870.0,1.4782175]
[1750107734607,0.01,108880.0,108870.0,0.96570047]
[1750107734824,0.01,108880.0,108870.0,1.4782175]
[1750107735033,0.01,108880.0,108870.0,1.4630175]
[1750107745013,0.01,108880.0,108870.0,0.93440047]
[1750107745220,0.01,108880.0,108870.0,1.4469175]
[1750107755147,0.0263,108880.0,108870.0,1.4469175]
[1750107760019,0.0263,108880.0,108870.0,1.2855175]
[1750107760237,0.0263,108880.0,108870.0,1.4466775]
[1750107760873,0.0263,108880.0,108870.0,1.2855175]
[1750107761099,0.0263,108880.0,108870.0,1.4466775]
[1750107763500,0.0428,108880.0,108870.0,1.4466775]
[1750107766231,0.0428,108880.0,108870.0,1.4466375]
[1750107766713,0.0428,108880.0,108870.0,1.4067575]
[1750107767413,0.0428,108880.0,108870.0,1.2855175]
[1750107767639,0.0428,108880.0,108870.0,1.4067575]
[1750107773711,0.0428,108880.0,108870.0,1.40595959]
[1750107775558,0.0428,108880.0,108870.0,1.47906615]
[1750107776790,0.0428,108880.0,108870.0,1.99158318]
[1750107777741,0.0428,108880.0,108870.0,1.99033195]
[1750107779208,0.0428,108880.0,108870.0,1.86909195]
[1750107779403,0.0428,108880.0,108870.0,1.47777492]
[1750107779622,0.0428,108880.0,108870.0,1.99029195]
[1750107781743,0.0428,108880.0,108870.0,1.47777492]
[1750107781981,0.01,108880.0,108870.0,2.38139195]
[1750107782193,0.01,108880.0,108870.0,2.30828539]
[1750107782399,0.01,108880.0,108870.0,2.39960638]
[1750107782832,0.01,108880.0,108870.0,2.30828539]
[1750107783677,0.01,108880.0,108870.0,2.29268539]
[1750107784815,0.01,108880.0,108870.0,2.59923453]
[1750107785055,0.0021525,108880.0,108870.0,3.20407255]
[1750107785297,0.0021525,108880.0,108870.0,3.20607255]
[1750107785512,0.0021525,108880.0,108870.0,2.69355552]
[1750107786171,0.0021525,108880.0,108870.0,3.20607255]
[1750107786393,0.40386242,108900.0,108890.0,1.00156215]
[1750107786614,0.40386242,108900.0,108890.0,2.28375797]
[1750107787043,0.40386242,108900.0,108890.0,2.31133697]
[1750107787601,0.40586242,108900.0,108890.0,2.31133697]
[1750107790032,0.40586242,108900.0,108890.0,2.29553697]
[1750107791906,0.42146242,108900.0,108890.0,2.29553697]
[1750107792118,0.42146242,108900.0,108890.0,1.78301994]
[1750107793405,0.42146242,108900.0,108890.0,2.29553697]
[1750107793833,0.40586242,108900.0,108890.0,2.29553697]
[1750107794491,0.42116242,108900.0,108890.0,2.29553697]
[1750107794675,0.42116242,108900.0,108890.0,1.78301994]
[1750107795126,0.43766242,108900.0,108890.0,1.78297994]
[1750107796489,0.42116242,108900.0,108890.0,2.29549697]
[1750107798593,0.43766242,108900.0,108890.0,1.78297994]
[1750107798809,0.43766242,108900.0,108890.0,1.62209994]
[1750107799053,0.43766242,108900.0,108890.0,1.78293994]
[1750107799256,0.43766242,108900.0,108890.0,2.29545697]
[1750107799476,0.43766242,108900.0,108890.0,1.27042291]
[1750107799703,0.43766242,108900.0,108890.0,2.29545697]
[1750107803625,0.43766242,108900.0,108890.0,2.29537697]
[1750107804723,0.43766242,108900.0,108890.0,1.78285994]
[1750107807873,0.43766242,108900.0,108890.0,2.29537697]
[1750107812032,0.43766242,108900.0,108890.0,1.78285994]
[1750107812464,0.43766242,108900.0,108890.0,1.62209994]
[1750107812632,0.43766242,108900.0,108890.0,1.78277994]
[1750107813667,0.43766242,108900.0,108890.0,0.87504206]
[1750107813867,0.43766242,108900.0,108890.0,0.33504206]
[1750107814068,0.95017945,108900.0,108890.0,0.42846306]
[1750107814531,0.95936151,108900.0,108890.0,0.30746306]
[1750107814842,0.44684439,108900.0,108890.0,0.42846306]
[1750107815042,0.95936142,108900.0,108890.0,0.42846306]
[1750107815250,0.96854356,108900.0,108890.0,0.30746306]
[1750107815710,0.96854348,108900.0,108890.0,0.42846306]
[1750107816876,0.95017945,108900.0,108890.0,0.30746306]
[1750107817090,0.95936142,108900.0,108890.0,0.42846306]
[1750107817300,0.95017945,108900.0,108890.0,0.42846306]
[1750107819278,0.95017945,108900.0,108890.0,0.30746306]
[1750107819566,0.95017945,108900.0,108890.0,0.42846306]
[1750107819799,0.95017945,108900.0,108890.0,0.30746306]
[1750107820024,1.49942538,108900.0,108890.0,0.20203832]
[1750107820243,1.62042597,108900.0,108890.0,0.20203832]
[1750107822188,1.27207868,108900.0,108890.0,0.19285516]
[1750107822630,1.27207868,108900.0,108890.0,0.20203865]
[1750107823073,1.27207868,108900.0,108890.0,0.19285516]
[1750107823371,1.27207868,108900.0,108890.0,0.18367159]
[1750107823623,1.26289612,108900.0,108890.0,0.19285516]
[1750107824274,1.26289612,108900.0,108890.0,0.20203865]
[1750107824502,0.75009987,108900.0,108890.0,0.20203865]
[1750107824719,1.26289612,108900.0,108890.0,0.20203865]
[1750107824935,1.26289612,108900.0,108890.0,0.21122206]
[1750107826848,0.75009987,108900.0,108890.0,0.21122197]
[1750107827108,1.26289612,108900.0,108890.0,0.20203865]
[1750107827366,1.26289612,108900.0,108890.0,0.21122206]
[1750107827802,1.26201397,108900.0,108890.0,0.20203865]
[1750107828582,1.26201397,108900.0,108890.0,0.21122206]
[1750107829208,1.26201397,108900.0,108890.0,0.22040538]
[1750107829840,1.26201397,108900.0,108890.0,0.21122206]
[1750107830831,1.26201397,108900.0,108890.0,0.22040538]
[1750107834519,1.14101397,108900.0,108890.0,0.22040538]
[1750107835494,1.14101397,108900.0,108890.0,0.21122206]
[1750107835693,1.29221397,108900.0,108890.0,0.22040538]
[1750107836262,1.29221397,108900.0,108890.0,0.22958862]
[1750107837004,1.32894287,108900.0,108890.0,0.22958803]
[1750107837229,1.13610542,108900.0,108890.0,0.22958803]
[1750107837674,1.14528807,108900.0,108890.0,0.22958803]
[1750107837897,1.32894355,108900.0,108890.0,0.2295882]
[1750107838117,1.31976149,108900.0,108890.0,0.2295882]
[1750107838782,1.31057918,108900.0,108890.0,0.2295882]
[1750107839416,1.31057918,108900.0,108890.0,0.22040505]
[1750107840317,1.31057918,108900.0,108890.0,0.21122181]
[1750107840531,0.032,108890.0,108880.0,0.20204099]
[1750107840747,0.032,108890.0,108880.0,0.29828275]
[1750107840748,0.04118324,108890.0,108880.0,0.29828275]
[1750107840992,0.56308508,108890.0,108880.0,0.29828275]
[1750107841990,0.57226849,108890.0,108880.0,0.29828275]
[1750107842235,0.56308508,108890.0,108880.0,0.29828275]
[1750107842773,0.57226849,108890.0,108880.0,0.29828275]
[1750107842981,0.58145131,108890.0,108880.0,0.30746717]
[1750107843421,0.7651229,108890.0,108880.0,0.30746717]
[1750107843891,0.77430639,108890.0,108880.0,0.30746717]
[1750107844127,0.5906348,108890.0,108880.0,0.30746717]
[1750107844251,0.77430639,108890.0,108880.0,0.09624176]
[1750107844479,0.25212453,108880.0,108870.0,0.2020756]
[1750107844694,1.25919493,108880.0,108870.0,0.19289059]
[1750107844921,1.25919493,108880.0,108870.0,0.20207577]
[1750107845328,0.23375721,108880.0,108870.0,0.20207577]
[1750107845542,0.23375721,108880.0,108870.0,0.21126086]
[1750107845737,0.22457288,108880.0,108870.0,0.20207577]
[1750107847648,0.22757288,108880.0,108870.0,0.20207577]
[1750107848088,0.21480533,108870.0,108860.0,0.002]
[1750107848536,0.58200417,108870.0,108860.0,0.002]
[1750107849238,0.70025511,108870.0,108860.0,0.002]
[1750107849456,0.74235567,108870.0,108860.0,0.002]
[1750107849675,0.5421124,108850.0,108840.0,0.002]
[1750107849903,0.83809738,108850.0,108840.0,0.00204725]
[1750107850419,0.83805738,108850.0,108840.0,0.00204725]
[1750107850849,0.68693738,108850.0,108840.0,0.00204725]
[1750107851282,0.5732124,108850.0,108840.0,0.00204725]
[1750107851504,0.7669324,108850.0,108840.0,0.00204725]
[1750107851720,0.87771501,108850.0,108840.0,0.00204725]
[1750107851936,0.95366621,108850.0,108840.0,0.00204725]
[1750107854738,0.97530684,108850.0,108840.0,0.00204725]
[1750107854961,1.07145606,108850.0,108840.0,0.00204725]
[1750107855758,1.07140352,108850.0,108840.0,0.00204725]
[1750107855969,1.04950486,108850.0,108840.0,0.00204725]
[1750107857120,1.02786423,108850.0,108840.0,0.00204725]
[1750107857328,1.04974471,108850.0,108840.0,0.00204725]
[1750107857800,1.02786423,108850.0,108840.0,0.00204725]
[1750107858665,1.02790423,108850.0,108840.0,0.00204725]
[1750107859118,1.04977058,108850.0,108840.0,0.00204725]
[1750107860687,1.09977058,108850.0,108840.0,0.00204725]
[1750107860945,1.09677058,108850.0,108840.0,0.00204725]
[1750107861165,1.09277058,108850.0,108840.0,0.00204725]
[1750107861391,0.20214954,108830.0,108820.0,0.002]
[1750107861595,0.50166625,108830.0,108820.0,0.00208688]
[1750107862264,0.54126625,108830.0,108820.0,0.00208688]
[1750107862897,0.5558071,108830.0,108820.0,0.00208688]
[1750107863964,0.5608071,108830.0,108820.0,0.00208688]
[1750107865020,0.48128773,108830.0,108820.0,0.00208688]
[1750107865234,0.63244773,108830.0,108820.0,0.00208688]
[1750107865714,0.97244773,108830.0,108820.0,0.00208688]
[1750107865924,0.9942974,108830.0,108820.0,0.00208688]
[1750107867483,0.97257652,108830.0,108820.0,0.00208688]
[1750107873254,0.97273652,108830.0,108820.0,0.00208688]
[1750107873476,0.92273652,108830.0,108820.0,0.00208688]
[1750107875052,0.95029623,108830.0,108820.0,0.00208688]
[1750107876410,0.79897623,108830.0,108820.0,0.00208688]
[1750107876617,0.95045623,108830.0,108820.0,0.00208688]
[1750107877057,0.79897623,108830.0,108820.0,0.00208688]
[1750107877276,0.95041623,108830.0,108820.0,0.00208688]
[1750107877726,0.8356893,108830.0,108820.0,0.00208688]
[1750107877962,0.9871293,108830.0,108820.0,0.00208688]
[1750107878699,0.9660137,108830.0,108820.0,0.00208688]
[1750107879598,1.02119588,108830.0,108820.0,0.00208688]
[1750107880957,1.02120041,108830.0,108820.0,0.00208688]
[1750107884124,0.98448734,108830.0,108820.0,0.00208688]
[1750107884761,0.9780387,108830.0,108820.0,0.00208688]
[1750107886415,1.01474965,108830.0,108820.0,0.00208688]
[1750107886626,0.9780387,108830.0,108820.0,0.00208688]
[1750107886836,1.01467724,108830.0,108820.0,0.00208688]